fUST/lending_fUST_20250207
["ID","MTS","AMOUNT","RATE_DAILY","PERIOD"]
[352082840,1738939851243,-500.0,0.00013064,2]
[352082841,1738939851252,-195.57799124,0.00013064,2]
[352082842,1738939851262,-4309.11,0.00013064,2]
[352082843,1738939851272,-500.0,0.00013064,2]
[352082845,1738939851282,-1666.0,0.00013064,2]
[352082848,1738939851363,-1695.49,0.00013064,2]
[352082850,1738939851372,-528.105748,0.00013064,2]
[352082852,1738939851382,-39752.58,0.00013064,2]
[352082854,1738939851391,-1978.37,0.00013064,2]
[352082855,1738939851401,-500.0,0.00013064,2]
[352082857,1738939851410,-500.0,0.00013064,2]
[352082859,1738939851419,-500.0,0.00013064,2]
[352082861,1738939851429,-504.22192872,0.00013064,2]
[352082863,1738939851439,-500.0,0.00013064,2]
[352082865,1738939851448,-500.0,0.00013064,2]
[352082867,1738939851458,-500.0,0.00013064,2]
[352082869,1738939851467,-1867.69,0.00013064,2]
[352082871,1738939851477,-1861.87,0.00013064,2]
[352082872,1738939851486,-904.43,0.00013064,2]
[352082873,1738939851496,-500.0,0.00013064,2]
[352082874,1738939851506,-500.0,0.00013064,2]
[352082875,1738939851515,-884.8,0.00013064,2]
[352082876,1738939851525,-500.0,0.00013064,2]
[352082877,1738939851535,-500.0,0.00013064,2]
[352082878,1738939851545,-500.0,0.00013064,2]
[352082879,1738939851554,-500.0,0.00013064,2]
[352082880,1738939851564,-936.48,0.00013064,2]
[352082881,1738939851574,-500.0,0.00013064,2]
[352082882,1738939851583,-500.0,0.00013064,2]
[352082884,1738939851593,-8591.22,0.00013064,2]
[352082886,1738939851602,-500.0,0.00013064,2]
[352082887,1738939851612,-1337.52,0.00013064,2]
[352082889,1738939851622,-500.0,0.00013064,2]
[352082891,1738939851632,-500.0,0.00013064,2]
[352082893,1738939851642,-500.0,0.00013064,2]
[352082895,1738939851651,-500.0,0.00013064,2]
[352082897,1738939851661,-518.18,0.00013064,2]
[352082899,1738939851670,-500.0,0.00013064,2]
[352082901,1738939851680,-500.0,0.00013064,2]
[352082903,1738939851689,-602.43,0.00013064,2]
[352082905,1738939851699,-500.0,0.00013064,2]
[352082907,1738939851708,-1955.19,0.00013064,2]
[352082908,1738939851717,-500.0,0.00013064,2]
[352082909,1738939851727,-500.0,0.00013064,2]
[352082910,1738939851738,-500.0,0.00013064,2]
[352082911,1738939851748,-500.0,0.00013064,2]
[352082912,1738939851757,-599.82,0.00013064,2]
[352082913,1738939851766,-665.61,0.00013064,2]
[352082914,1738939851776,-312.24934251,0.00013064,2]
[352082915,1738939851786,-500.0,0.00013064,2]
[352082916,1738939851795,-708.43,0.00013064,2]
[352082918,1738939851805,-371.48801102,0.00013064,2]
[352082920,1738939851815,-833.25,0.00013064,2]
[352082921,1738939851824,-500.0,0.00013064,2]
[352082922,1738939851833,-500.0,0.00013064,2]
[352082923,1738939851843,-11556.96,0.00013064,2]
[352082924,1738939851852,-500.0,0.00013064,2]
[352082925,1738939851862,-500.0,0.00013064,2]
[352082926,1738939851871,-500.0,0.00013064,2]
[352082928,1738939851880,-503.52746898,0.00013064,2]
[352082930,1738939851889,-500.0,0.00013064,2]
[352082932,1738939851899,-500.0,0.00013064,2]
[352082934,1738939851909,-3586.98,0.00013064,2]
[352082936,1738939851919,-500.0,0.00013064,2]
[352082938,1738939851928,-744.17,0.00013064,2]
[352082940,1738939851937,-500.0,0.00013064,2]
[352082942,1738939851946,-500.0,0.00013064,2]
[352082944,1738939851955,-601.79,0.00013064,2]
[352082946,1738939851964,-500.0,0.00013064,2]
[352082947,1738939851974,-500.0,0.00013064,2]
[352082949,1738939851983,-791.342435,0.00013064,2]
[352082952,1738939851995,-791.342435,0.00013064,2]
[352082953,1738939852004,-500.0,0.00013064,2]
[352082955,1738939852014,-1564.15,0.00013064,2]
[352082957,1738939852023,-686.26,0.00013064,2]
[352082959,1738939852033,-500.0,0.00013064,2]
[352082961,1738939852043,-791.342435,0.00013064,2]
[352082963,1738939852053,-502.03757877,0.00013064,2]
[352082965,1738939852063,-791.342435,0.00013064,2]
[352082967,1738939852073,-500.0,0.00013064,2]
[352082969,1738939852083,-500.0,0.00013064,2]
[352082971,1738939852093,-500.0,0.00013064,2]
[352082973,1738939852102,-500.0,0.00013064,2]
[352082975,1738939852111,-5082.18,0.00013064,2]
[352082976,1738939852120,-500.0,0.00013064,2]
[352082978,1738939852131,-14606.37,0.00013064,2]
[352082980,1738939852140,-500.0,0.00013064,2]
[352082982,1738939852150,-500.0,0.00013064,2]
[352082984,1738939852159,-730.46,0.00013064,2]
[352082986,1738939852168,-500.0,0.00013064,2]
[352082988,1738939852178,-500.0,0.00013064,2]
[352082990,1738939852187,-1329.3,0.00013064,2]
[352082992,1738939852197,-500.0,0.00013064,2]
[352082994,1738939852207,-500.0,0.00013064,2]
[352082996,1738939852217,-609.28,0.00013064,2]
[352082998,1738939852226,-293.741913,0.00013064,2]
[352083000,1738939852238,-293.741913,0.00013064,2]
[352083001,1738939852248,-4521.66,0.00013064,2]
[352083003,1738939852258,-511.90087153,0.00013064,2]
[352083004,1738939852268,-1030.52,0.00013064,2]
[352083005,1738939852277,-500.0,0.00013064,2]
[352083006,1738939852287,-349.38190605,0.00013064,2]
[352083007,1738939852298,-500.0,0.00013064,2]
[352083008,1738939852308,-293.741913,0.00013064,2]
[352083009,1738939852318,-293.741913,0.00013064,2]
[352083011,1738939852327,-2149.733809,0.00013064,2]
[352083013,1738939852336,-954.97,0.00013064,2]
[352083015,1738939852346,-2149.733809,0.00013064,2]
[352083017,1738939852355,-500.0,0.00013064,2]
[352083019,1738939852365,-500.0,0.00013064,2]
[352083021,1738939852375,-2149.733809,0.00013064,2]
[352083023,1738939852384,-2149.733809,0.00013064,2]
[352083025,1738939852394,-500.0,0.00013064,2]
[352083027,1738939852403,-500.0,0.00013064,2]
[352083028,1738939852413,-4638.47,0.00013064,2]
[352083031,1738939852423,-500.0,0.00013064,2]
[352083032,1738939852432,-500.0,0.00013064,2]
[352083034,1738939852441,-500.0,0.00013064,2]
[352083037,1738939852451,-2062.77,0.00013064,2]
[352083039,1738939852462,-500.0,0.00013064,2]
[352083041,1738939852472,-500.0,0.00013064,2]
[352083043,1738939852481,-179.59849358,0.00013064,2]
[352083045,1738939852492,-586.69,0.00013064,2]
[352083047,1738939852502,-626.73,0.00013064,2]
[352083049,1738939852512,-500.0,0.0001316,2]
[352083051,1738939852522,-6228.14,0.0001316,2]
[352083053,1738939852532,-2395.44,0.0001316,2]
[352083055,1738939852541,-500.0,0.00013161,2]
[352083057,1738939852554,-673.13,0.00013161,2]
[352083059,1738939852575,-500.0,0.00013161,2]
[352083068,1738939852659,-500.0,0.00013161,2]
[352083070,1738939852669,-500.0,0.00013161,2]
[352083072,1738939852678,-500.0,0.00013161,2]
[352083074,1738939852687,-500.0,0.00013161,2]
[352083076,1738939852698,-574.55,0.00013161,2]
[352083078,1738939852707,-13264.03974987,0.00013186,2]
[352083080,1738939852717,-7053.3,0.00013189,2]
[352083082,1738939852727,-791.342435,0.00013189,2]
[352083084,1738939852736,-791.342438,0.00013189,2]
[352083087,1738939852750,-293.741913,0.00013189,2]
[352083089,1738939852760,-293.741911,0.00013189,2]
[352083091,1738939852769,-2149.733809,0.00013189,2]
[352083093,1738939852778,-2149.73381866,0.00013189,2]
[352083095,1738939852788,-500.0,0.00013201,2]
[352083097,1738939852797,-8151.41,0.00013201,2]
[352083098,1738939852807,-500.0,0.00013201,2]
[352083100,1738939852816,-553.1,0.00013201,2]
[352083102,1738939852826,-500.0,0.00013201,2]
[352083104,1738939852835,-752.17,0.00013201,2]
[352083107,1738939852845,-839.75,0.00013201,2]
[352083108,1738939852856,-500.0,0.00013201,2]
[352083110,1738939852865,-1388.38,0.00013201,2]
[352083112,1738939852875,-500.0,0.00013201,2]
[352083114,1738939852885,-500.0,0.00013201,2]
[352083117,1738939852895,-526.13,0.00013201,2]
[352083119,1738939852904,-500.0,0.00013201,2]
[352083121,1738939852914,-500.0,0.00013201,2]
[352083123,1738939852923,-500.0,0.00013201,2]
[352083125,1738939852932,-500.0,0.00013201,2]
[352083127,1738939852941,-500.0,0.00013201,2]
[352083129,1738939852951,-19230.22,0.00013201,2]
[352083131,1738939852960,-500.0,0.00013201,2]
[352083133,1738939852969,-1012.17,0.00013201,2]
[352083135,1738939852978,-1006.8,0.00013201,2]
[352083137,1738939852988,-500.0,0.00013201,2]
[352083139,1738939852998,-500.0,0.00013201,2]
[352083141,1738939853008,-500.0,0.00013201,2]
[352083143,1738939853017,-500.0,0.00013201,2]
[352083145,1738939853026,-592.3,0.00013201,2]
[352083147,1738939853036,-768.24,0.00013201,2]
[352083149,1738939853050,-500.0,0.00013201,2]
[352083151,1738939853060,-4309.11,0.00013201,2]
[352083153,1738939853070,-500.0,0.00013201,2]
[352083155,1738939853080,-1666.0,0.00013201,2]
[352083157,1738939853091,-1695.49,0.00013201,2]
[352083159,1738939853101,-39752.58,0.00013201,2]
[352083161,1738939853110,-1978.37,0.00013201,2]
[352083163,1738939853121,-500.0,0.00013201,2]
[352083165,1738939853131,-500.0,0.00013201,2]
[352083167,1738939853141,-500.0,0.00013201,2]
[352083169,1738939853150,-500.0,0.00013201,2]
[352083171,1738939853160,-500.0,0.00013201,2]
[352083173,1738939853169,-500.0,0.00013201,2]
[352083175,1738939853178,-1867.69,0.00013201,2]
[352083177,1738939853187,-1861.87,0.00013201,2]
[352083179,1738939853197,-904.43,0.00013201,2]
[352083181,1738939853207,-500.0,0.00013201,2]
[352083183,1738939853217,-500.0,0.00013201,2]
[352083185,1738939853226,-884.8,0.00013201,2]
[352083187,1738939853237,-500.0,0.00013201,2]
[352083189,1738939853247,-500.97557477,0.00013201,2]
[352083191,1738939853257,-500.0,0.00013201,2]
[352083193,1738939853266,-591.38542071,0.00013201,2]
[352083195,1738939853275,-936.48,0.00013201,2]
[352083197,1738939853285,-500.0,0.00013201,2]
[352083199,1738939853294,-500.0,0.00013201,2]
[352083201,1738939853304,-8591.22,0.00013201,2]
[352083203,1738939853314,-500.0,0.00013201,2]
[352083205,1738939853323,-1337.52,0.00013201,2]
[352083207,1738939853332,-503.35574741,0.00013201,2]
[352083209,1738939853342,-500.0,0.00013201,2]
[352083210,1738939853351,-500.0,0.00013201,2]
[352083211,1738939853360,-500.0,0.00013201,2]
[352083212,1738939853370,-518.18,0.00013201,2]
[352083213,1738939853379,-500.0,0.00013201,2]
[352083214,1738939853387,-459.80232927,0.00013201,2]
[352083215,1738939853397,-602.43,0.00013201,2]
[352083216,1738939853407,-500.0,0.00013201,2]
[352083217,1738939853416,-1955.19,0.00013201,2]
[352083218,1738939853425,-500.0,0.00013201,2]
[352083219,1738939853435,-500.0,0.00013201,2]
[352083221,1738939853445,-500.0,0.00013201,2]
[352083223,1738939853455,-500.0,0.00013201,2]
[352083225,1738939853464,-599.82,0.00013201,2]
[352083226,1738939853473,-15.54039167,0.00013201,2]
[352083242,1738939853775,-650.06960833,0.00013201,2]
[352083243,1738939853786,-500.0,0.00013201,2]
[352083244,1738939853796,-708.43,0.00013201,2]
[352083245,1738939853807,-669.80402992,0.00013201,2]
[352083246,1738939853839,-163.44597008,0.00013201,2]
[352083247,1738939853857,-453.71768365,0.00013201,2]
[352083262,1738939854721,-46.28231635,0.00013201,2]
[352083263,1738939854735,-500.0,0.00013201,2]
[352083264,1738939854750,-28.9215241,0.00013201,2]
[352083265,1738939854768,-8610.79004521,0.00013201,2]
[352083266,1738939854785,-1076.5764493,0.00013201,2]
[352083267,1738939854849,-1840.67198139,0.00013201,2]
[352083268,1738939854859,-500.0,0.00013201,2]
[352083269,1738939854869,-500.0,0.00013201,2]
[352083270,1738939854878,-500.0,0.00013201,2]
[352083271,1738939854887,-500.0,0.00013201,2]
[352083272,1738939854896,-2109.6668401,0.00013201,2]
[352083273,1738939854909,-1477.3131599,0.00013201,2]
[352083274,1738939855075,-500.0,0.00013201,2]
[352083275,1738939855103,-744.17,0.00013201,2]
[352083276,1738939855114,-500.0,0.00013201,2]
[352083277,1738939855124,-500.0,0.00013201,2]
[352083278,1738939855134,-601.79,0.00013201,2]
[352083279,1738939855143,-500.0,0.00013201,2]
[352083280,1738939855153,-500.0,0.00013201,2]
[352083281,1738939855164,-500.0,0.00013201,2]
[352083282,1738939855173,-1564.15,0.00013201,2]
[352083283,1738939855183,-686.26,0.00013201,2]
[352083284,1738939855192,-500.0,0.00013201,2]
[352083285,1738939855202,-500.0,0.00013201,2]
[352083286,1738939855212,-500.0,0.00013201,2]
[352083287,1738939855221,-500.0,0.00013201,2]
[352083288,1738939855230,-509.05520609,0.00013201,2]
[352083289,1738939855241,-3282.11095586,0.00013201,2]
[352083290,1738939855480,-1800.06904414,0.00013201,2]
[352083291,1738939855494,-507.42403273,0.00013201,2]
[352083292,1738939855504,-178.43192313,0.00013201,2]
[352083293,1738939969240,198.14,0.00010959,2]
[352083294,1738940010799,388.78,0.00010959,2]
[352083295,1738940019140,3000.0,0.00014,30]
[352083296,1738940019541,3000.0,0.0001401,30]
[352083297,1738940019933,3000.0,0.0001402,30]
[352083298,1738940021379,184.11534413,0.00010959,2]
[352083299,1738940021414,172.14465587,0.00010959,2]
[352083300,1738940031932,296.88,0.00010959,2]
[352083301,1738940042966,296.88,0.00010959,2]
[352083302,1738940047913,157.909657,0.00010637,2]
[352083303,1738940048120,157.909657,0.00010645,2]
[352083304,1738940048985,157.909657,0.00010654,2]
[352083305,1738940049147,157.909657,0.00010663,2]
[352083306,1738940049228,157.909657,0.00010672,2]
[352083307,1738940049441,157.909657,0.00010681,2]
[352083308,1738940049697,157.909657,0.0001069,2]
[352083309,1738940053562,2828.15,0.00010959,2]
[352083310,1738940055168,-100000.0,0.00020133,61]
[352083311,1738940060729,-1000000.0,0.00020133,61]
[352083312,1738940064293,-1000000.0,0.00020133,61]
[352083313,1738940064346,2356.79,0.00010959,2]
[352083314,1738940070525,5300.0,0.00010876,2]
[352083317,1738940075106,1964.0,0.00010959,2]
[352083318,1738940079843,535.1127625,0.00010578,2]
[352083319,1738940084891,-1000000.0,0.00020133,61]
[352083320,1738940085368,1636.66,0.00010959,2]
[352083322,1738940095923,1363.89,0.00010959,2]
[352083323,1738940096992,-179186.54944495,0.00020133,61]
[352083324,1738940097019,-920813.45055505,0.00020133,61]
[352083325,1738940105874,250.0,0.00010637,2]
[352083326,1738940106541,1136.57,0.00010959,2]
[352083327,1738940117123,757.55498263,0.00010959,2]
[352083328,1738940117157,189.58501737,0.00010959,2]
[352083329,1738940127903,789.29,0.00010959,2]
[352083330,1738940138411,657.74,0.00010959,2]
[352083331,1738940149227,-222366.67843818,0.00020133,61]
[352083332,1738940149258,-3934184.37109636,0.00020133,61]
[352083333,1738940149304,-642438.35394597,0.00020133,61]
[352083334,1738940149339,-201010.59651949,0.00020133,61]
[352083335,1738940149441,548.11,0.00010959,2]
[352083336,1738940159478,456.76,0.00010959,2]
[352083337,1738940170028,380.64,0.00010959,2]
[352083338,1738940180529,317.2,0.00010959,2]
[352083339,1738940191099,264.33,0.00010959,2]
[352083340,1738940201850,220.27,0.00010959,2]
[352083341,1738940212556,183.56,0.00010959,2]
[352083342,1738940223086,152.97,0.00010959,2]
[352083343,1738940233921,764.87,0.00010959,2]
[352083345,1738940263347,1000.0,0.0001,2]
[352083346,1738940287678,644.7736491,0.0001,2]
[352083348,1738940328084,5000.0,0.00010915,2]
[352083349,1738940336366,5000.0,0.00010915,2]
[352083350,1738940344496,3429.90133353,0.00010915,2]
[352083351,1738940344531,1570.09866647,0.00010915,2]
[352083352,1738940352379,5000.0,0.00010915,2]
[352083353,1738940360495,4950.75051899,0.00010915,2]
[352083354,1738940368289,5000.0,0.00010915,2]
[352083356,1738940384077,3479.15081454,0.00010915,2]
[352083359,1738940550421,325.7598657,9.95e-05,2]
[352083360,1738940570808,5000.0,9.909e-05,2]
[352083361,1738940586509,5000.0,9.909e-05,2]
[352083362,1738940602292,5000.0,9.909e-05,2]
[352083363,1738940618108,1604.4600411,9.909e-05,2]
[352083364,1738940625395,500.0,8.001e-05,2]
[352083365,1738940629260,1151.11725065,9.845e-05,2]
[352083366,1738940629295,20000.0,9.845e-05,2]
[352083367,1738940629332,3748.88274935,9.845e-05,2]
[352083368,1738940666801,1000.0,0.00019,120]
[352083369,1738940714394,606.09565467,9.909e-05,2]
[352083370,1738940718228,206.4521252,9.758e-05,2]
[352083371,1738940772781,219.37619585,9.913e-05,2]
[352083372,1738940805867,15219.19327493,9.922e-05,2]
[352083373,1738940805901,13180.64064427,9.922e-05,2]
[352083374,1738940836222,6819.35935573,9.818e-05,2]
[352083375,1738940836257,20000.0,9.818e-05,2]
[352083376,1738940836291,12638.91897827,9.818e-05,2]
[352083382,1738940885012,5000.0,9.909e-05,2]
[352083383,1738940893361,377.6546755,9.909e-05,2]
[352083385,1738940980079,3141.0,0.000192,120]
[352083386,1738941014608,250.0,9.85e-05,2]
[352083586,1738941034716,-2373.4684478,0.00010009,2]
[352083587,1738941034728,-7077.9113274,0.00010013,2]
[352083588,1738941034738,-202.5979574,0.00010133,2]
[352083589,1738941034748,-300.0,0.00010224,2]
[352083590,1738941034757,-2143.042841,0.00010225,2]
[352083591,1738941034767,-1926.10037052,0.00010748,2]
[352083592,1738941034776,-4900.0,0.00010876,2]
[352083593,1738941034786,-500.0,0.00010915,2]
[352083594,1738941034795,-500.0,0.00010915,2]
[352083595,1738941034805,-500.0,0.00010915,2]
[352083596,1738941034815,-500.0,0.00010915,2]
[352083597,1738941034824,-500.0,0.00010915,2]
[352083598,1738941034834,-500.0,0.00010915,2]
[352083599,1738941034843,-218.97181333,0.00010915,2]
[352083600,1738941034870,-500.0,0.00010958,2]
[352083601,1738941034880,-606.48898926,0.00010958,2]
[352083602,1738941034889,-5691.84,0.00010958,2]
[352083603,1738941034899,-1334.31,0.00010958,2]
[352083604,1738941034909,-1371.83,0.00010958,2]
[352083605,1738941034919,-500.0,0.00010958,2]
[352083606,1738941034928,-500.0,0.00010958,2]
[352083607,1738941034938,-500.0,0.00010958,2]
[352083608,1738941034948,-790.6,0.00010958,2]
[352083609,1738941034957,-3441.54,0.00010958,2]
[352083610,1738941034967,-258.96263503,0.00010996,2]
[352083611,1738941034976,-209.9191534,0.00010999,2]
[352083612,1738941034986,-3345.26700761,0.00011025,2]
[352083613,1738941034995,-258.96263502,0.00011065,2]
[352083614,1738941035005,-500.0,0.00011073,2]
[352083615,1738941035014,-500.0,0.00011073,2]
[352083616,1738941035023,-500.0,0.00011073,2]
[352083617,1738941035032,-500.0,0.00011073,2]
[352083618,1738941035041,-500.0,0.00011073,2]
[352083619,1738941035050,-409.87038953,0.00011073,2]
[352083620,1738941035060,-500.0,0.00011073,2]
[352083621,1738941035068,-500.0,0.00011095,2]
[352083622,1738941035077,-5691.84,0.00011095,2]
[352083623,1738941035087,-1334.31,0.00011095,2]
[352083624,1738941035096,-1371.83,0.00011095,2]
[352083625,1738941035106,-500.0,0.00011095,2]
[352083626,1738941035115,-500.0,0.00011095,2]
[352083627,1738941035124,-790.6,0.00011095,2]
[352083628,1738941035133,-3441.54,0.00011095,2]
[352083629,1738941035143,-500.0,0.00011096,2]
[352083630,1738941035153,-500.0,0.00011096,2]
[352083631,1738941035162,-500.0,0.00011096,2]
[352083632,1738941035171,-723.69,0.00011096,2]
[352083633,1738941035180,-1696.00589451,0.00011096,2]
[352083634,1738941035192,-2000.0,0.00011096,2]
[352083688,1738941038826,-408.69553101,0.00011093,2]
[352083690,1738941038836,-282.97522015,0.00011093,2]
[352083692,1738941038847,-500.0,0.00011093,2]
[352083694,1738941038864,-500.0,0.00011093,2]
[352083696,1738941038874,-500.0,0.00011093,2]
[352083698,1738941038884,-500.0,0.00011093,2]
[352083700,1738941038894,-500.0,0.00011093,2]
[352083702,1738941038905,-309.16171092,0.00011093,2]
[352083704,1738941038915,-500.0,0.00011093,2]
[352083706,1738941038924,-500.0,0.00011093,2]
[352083708,1738941038935,-200.0,0.00011093,2]
[352083710,1738941038945,-500.0,0.00011093,2]
[352083721,1738941039044,-500.0,0.00011093,2]
[352083723,1738941039055,-500.0,0.00011093,2]
[352083725,1738941039064,-500.0,0.00011093,2]
[352083727,1738941039075,-500.0,0.00011093,2]
[352083729,1738941039084,-500.0,0.00011093,2]
[352083731,1738941039094,-500.0,0.00011093,2]
[352083733,1738941039111,-500.0,0.00011093,2]
[352083735,1738941039121,-500.0,0.00011093,2]
[352083737,1738941039131,-206.75766847,0.00011093,2]
[352083739,1738941039141,-500.0,0.00011093,2]
[352083741,1738941039151,-500.0,0.00011093,2]
[352083743,1738941039161,-500.0,0.00011093,2]
[352083745,1738941039171,-500.0,0.00011093,2]
[352083747,1738941039181,-302.80421586,0.00011093,2]
[352083749,1738941039194,-197.19578414,0.00011093,2]
[352083751,1738941039204,-500.0,0.00011093,2]
[352083753,1738941039213,-490.81440315,0.00011093,2]
[352083755,1738941039225,-9.18559685,0.00011093,2]
[352083757,1738941039234,-500.0,0.00011093,2]
[352083759,1738941039244,-500.0,0.00011093,2]
[352083761,1738941039254,-500.0,0.00011093,2]
[352083763,1738941039264,-500.0,0.00011093,2]
[352083765,1738941039274,-500.0,0.00011093,2]
[352083767,1738941039284,-541.04497938,0.00011093,2]
[352083769,1738941039293,-500.0,0.00011093,2]
[352083771,1738941039304,-500.0,0.00011093,2]
[352083773,1738941039313,-623.16685383,0.00011093,2]
[352083775,1738941039323,-500.0,0.00011093,2]
[352083777,1738941039333,-500.0,0.00011093,2]
[352083779,1738941039343,-500.0,0.00011093,2]
[352083781,1738941039358,-5213.13410549,0.00011096,2]
[352083783,1738941039368,-6759.41,0.00011096,2]
[352083784,1738941039378,-740.55,0.00011096,2]
[352083785,1738941039389,-500.0,0.00011096,2]
[352083786,1738941039399,-491.95714354,0.00011096,2]
[352083788,1738941039410,-500.0,0.00011096,2]
[352083790,1738941039420,-887.55,0.00011096,2]
[352083792,1738941039430,-500.0,0.00011096,2]
[352083794,1738941039440,-500.0,0.00011096,2]
[352083796,1738941039451,-4333.25,0.00011096,2]
[352083798,1738941039462,-10647.36,0.00011096,2]
[352083800,1738941039472,-1976.82,0.00011096,2]
[352083802,1738941039482,-1536.63,0.00011096,2]
[352083804,1738941039491,-500.0,0.00011096,2]
[352083806,1738941039502,-500.0,0.00011096,2]
[352083808,1738941039512,-600.61,0.00011096,2]
[352083810,1738941039528,-500.0,0.00011096,2]
[352083812,1738941039543,-500.0,0.00011096,2]
[352083813,1738941039553,-4658.66,0.00011096,2]
[352083814,1738941039562,-5576.86,0.00011096,2]
[352083815,1738941039572,-500.0,0.00011096,2]
[352083816,1738941039582,-500.0,0.00011096,2]
[352083817,1738941039591,-504.30609718,0.00011096,2]
[352083818,1738941039606,-3392.61,0.00011096,2]
[352083820,1738941039615,-6759.41,0.00011098,2]
[352083822,1738941039625,-6759.41,0.00011098,2]
[352083824,1738941039635,-500.0,0.00011098,2]
[352083827,1738941039644,-500.0,0.00011098,2]
[352083829,1738941039654,-609.95015041,0.00011098,2]
[352083830,1738941039664,-500.0,0.00011099,2]
[352083831,1738941039673,-500.0,0.00011099,2]
[352083832,1738941039683,-500.66416803,0.00011099,2]
[352083833,1738941039692,-500.0,0.00011099,2]
[352083834,1738941039702,-500.0,0.00011099,2]
[352083835,1738941039711,-500.0,0.00011099,2]
[352083836,1738941039720,-500.0,0.00011099,2]
[352083837,1738941039729,-500.0,0.00011099,2]
[352083838,1738941039739,-500.0,0.00011099,2]
[352083839,1738941039748,-500.0,0.00011099,2]
[352083840,1738941039758,-500.0,0.00011099,2]
[352083841,1738941039768,-500.0,0.00011099,2]
[352083842,1738941039777,-500.0,0.00011099,2]
[352083843,1738941039786,-527.07115794,0.00011099,2]
[352083844,1738941039795,-500.0,0.00011099,2]
[352083845,1738941039805,-500.0,0.00011099,2]
[352083846,1738941039814,-500.0,0.00011099,2]
[352083847,1738941039824,-500.0,0.00011099,2]
[352083848,1738941039833,-500.0,0.00011099,2]
[352083849,1738941039843,-500.0,0.00011099,2]
[352083850,1738941039856,-500.0,0.00011099,2]
[352083851,1738941039865,-500.0,0.00011099,2]
[352083852,1738941039875,-500.0,0.00011099,2]
[352083853,1738941039884,-506.68203106,0.00011099,2]
[352083854,1738941039894,-500.0,0.00011099,2]
[352083855,1738941039904,-500.0,0.00011099,2]
[352083856,1738941039914,-500.0,0.00011099,2]
[352083857,1738941039923,-500.0,0.00011099,2]
[352083858,1738941039932,-500.0,0.00011099,2]
[352083859,1738941039942,-500.0,0.00011099,2]
[352083860,1738941039952,-500.0,0.00011099,2]
[352083861,1738941039961,-503.15110495,0.00011099,2]
[352083862,1738941039971,-500.0,0.00011099,2]
[352083863,1738941039981,-534.29815944,0.00011099,2]
[352083864,1738941039991,-500.0,0.00011099,2]
[352083865,1738941040000,-500.0,0.00011099,2]
[352083866,1738941040010,-500.0,0.00011099,2]
[352083867,1738941040022,-500.0,0.00011099,2]
[352083868,1738941040032,-500.0,0.00011099,2]
[352083869,1738941040041,-500.0,0.00011099,2]
[352083870,1738941040051,-500.0,0.00011099,2]
[352083871,1738941040061,-500.0,0.00011099,2]
[352083872,1738941040071,-500.0,0.00011099,2]
[352083873,1738941040081,-500.0,0.00011099,2]
[352083874,1738941040091,-847.75,0.00011099,2]
[352083875,1738941040101,-500.0,0.00011099,2]
[352083876,1738941040111,-500.0,0.00011099,2]
[352083877,1738941040128,-500.0,0.00011099,2]